fUSD/lending_fUSD_20260427
["ID","MTS","AMOUNT","RATE_DAILY","PERIOD"]
[421191764,1777229432364,-500.0,0.0001,2]
[421191765,1777229432374,-500.0,0.0001,2]
[421191766,1777229432383,-500.0,0.0001,2]
[421191767,1777229432392,-500.0,0.0001,2]
[421191768,1777229432402,-500.0,0.0001,2]
[421191769,1777229432411,-500.0,0.0001,2]
[421191770,1777229432420,-500.0,0.0001,2]
[421191771,1777229432430,-500.0,0.0001,2]
[421191772,1777229432439,-500.0,0.0001,2]
[421191773,1777229432448,-500.0,0.0001,2]
[421191774,1777229432458,-500.0,0.0001,2]
[421191775,1777229432467,-500.0,0.0001,2]
[421191776,1777229432476,-500.0,0.0001,2]
[421191777,1777229432486,-500.0,0.0001,2]
[421191778,1777229432495,-500.0,0.0001,2]
[421191779,1777229432504,-500.0,0.0001,2]
[421191780,1777229432514,-500.0,0.0001,2]
[421191781,1777229432523,-500.0,0.0001,2]
[421191782,1777229432533,-500.0,0.0001,2]
[421191783,1777229432543,-500.0,0.0001,2]
[421191784,1777229432552,-500.0,0.0001,2]
[421191785,1777229432561,-500.0,0.0001,2]
[421191786,1777229432571,-500.0,0.0001,2]
[421191787,1777229432580,-500.0,0.0001,2]
[421191788,1777229432590,-500.0,0.0001,2]
[421191789,1777229432599,-500.0,0.0001,2]
[421191790,1777229432611,-500.0,0.0001,2]
[421191791,1777229432620,-500.0,0.0001,2]
[421191792,1777229432629,-500.0,0.0001,2]
[421191793,1777229432639,-500.0,0.0001,2]
[421191794,1777229432648,-500.0,0.0001,2]
[421191795,1777229432658,-500.0,0.0001,2]
[421191796,1777229432667,-500.0,0.0001,2]
[421191797,1777229432677,-500.0,0.0001,2]
[421191798,1777229432687,-500.0,0.0001,2]
[421191799,1777229432696,-500.0,0.0001,2]
[421191800,1777229432706,-500.0,0.0001,2]
[421191801,1777229432716,-500.0,0.0001,2]
[421191802,1777229432725,-500.0,0.0001,2]
[421191803,1777229432734,-500.0,0.0001,2]
[421191804,1777229432744,-500.0,0.0001,2]
[421191805,1777229432754,-500.0,0.0001,2]
[421191806,1777229432763,-500.0,0.0001,2]
[421191807,1777229432772,-500.0,0.0001,2]
[421191808,1777229432782,-500.0,0.0001,2]
[421191809,1777229432791,-500.0,0.0001,2]
[421191810,1777229432801,-500.0,0.0001,2]
[421191811,1777229432810,-500.0,0.0001,2]
[421191812,1777229432819,-500.0,0.0001,2]
[421191813,1777229432829,-500.0,0.0001,2]
[421191814,1777229432838,-500.0,0.0001,2]
[421191815,1777229432848,-500.0,0.0001,2]
[421191816,1777229432857,-4927.99108493,0.00010179,2]
[421191817,1777229432867,-500.0,0.00010274,2]
[421191818,1777229432876,-150.00000001,0.000108,2]
[421191819,1777229432886,-150.0,0.000108,2]
[421191820,1777229432896,-150.0,0.000108,2]
[421191821,1777229432906,-150.0,0.000108,2]
[421191822,1777229432915,-150.0,0.000108,2]
[421191823,1777229432924,-150.0,0.0001095,2]
[421191824,1777229432938,-1680.0,0.00010998,2]
[421191825,1777229432953,-255.0,0.00010999,2]
[421191826,1777229432974,-300.0,0.00010999,2]
[421191827,1777229432991,-150.0,0.000111,2]
[421191828,1777229433000,-150.0,0.0001125,2]
[421191829,1777229433010,-150.0,0.000114,2]
[421191830,1777229433020,-150.0,0.000114,2]
[421191831,1777229433029,-150.0,0.0001155,2]
[421191832,1777229433043,-150.0,0.000117,2]
[421191833,1777229433052,-209.0,0.0001185,2]
[421191834,1777229433063,-150.0,0.0001185,2]
[421191835,1777229433072,-1000.0,0.00011899,2]
[421191836,1777229433082,-6052.448,0.00011899,2]
[421191837,1777229433091,-436.832,0.00011899,2]
[421191838,1777229433102,-322.20493581,0.000119,2]
[421191839,1777229433112,-670.83523484,0.000119,2]
[421191840,1777229433121,-601.21210677,0.000119,2]
[421191841,1777229433130,-657.67533037,0.000119,2]
[421191842,1777229433142,-500.0,0.000119,2]
[421191843,1777229433151,-22868.50669611,0.000119,2]
[421191844,1777229433160,-4261.10914985,0.000119,2]
[421191845,1777229433170,-209.13749155,0.00011973,2]
[421191846,1777229433183,-500.2403318,0.00011973,2]
[421191847,1777229433193,-200.0,0.00011993,2]
[421191848,1777229433202,-151.0,0.00011993,2]
[421191849,1777229433211,-500.0,0.00011993,2]
[421191850,1777229433221,-500.0,0.00011993,2]
[421191851,1777229433232,-151.0,0.00011993,2]
[421191852,1777229433241,-500.0,0.00011993,2]
[421191853,1777229433250,-151.0,0.00011993,2]
[421191854,1777229433260,-500.0,0.00011993,2]
[421191855,1777229433269,-151.0,0.00011993,2]
[421191856,1777229433278,-387.94217574,0.00011993,2]
[421191857,1777229433289,-151.0,0.00011993,2]
[421191858,1777229433299,-151.0,0.00011993,2]
[421191859,1777229433308,-151.0,0.00011993,2]
[421191860,1777229433318,-151.0,0.00011993,2]
[421191861,1777229433328,-151.0,0.00011993,2]
[421191862,1777229433338,-151.0,0.00011993,2]
[421191863,1777229433347,-151.0,0.00011993,2]
[421191864,1777229433357,-151.0,0.00011993,2]
[421191865,1777229433366,-151.0,0.00011993,2]
[421191866,1777229433375,-151.0,0.00011993,2]
[421191867,1777229433385,-500.0,0.00011993,2]
[421191868,1777229433394,-278.55420501,0.00011993,2]
[421191869,1777229433403,-151.0,0.00011993,2]
[421191870,1777229433413,-151.0,0.00011993,2]
[421191871,1777229433422,-500.0,0.00011993,2]
[421191872,1777229433431,-151.0,0.00011993,2]
[421191873,1777229433440,-500.0,0.00011993,2]
[421191874,1777229433450,-151.0,0.00011993,2]
[421191875,1777229433460,-500.0,0.00011993,2]
[421191876,1777229433469,-500.0,0.00011993,2]
[421191877,1777229433479,-500.0,0.00011993,2]
[421191878,1777229433489,-528.80885477,0.00011993,2]
[421191879,1777229433499,-151.0,0.00011993,2]
[421191880,1777229433508,-286.65485468,0.00011998,2]
[421191881,1777229433517,-24945.35383815,0.00011999,2]
[421191882,1777229433527,-342.47,0.00011999,2]
[421191883,1777229433537,-150.0,0.00011999,2]
[421191884,1777229433547,-250.0,0.00011999,2]
[421191885,1777229433558,-500.0,0.00011999,2]
[421191886,1777229433568,-325.45371369,0.00011999,2]
[421191887,1777229433578,-500.0,0.00011999,2]
[421191888,1777229433588,-306.34549414,0.00011999,2]
[421191889,1777229433598,-500.0,0.00011999,2]
[421191890,1777229433609,-500.0,0.00011999,2]
[421191891,1777229433619,-500.0,0.00011999,2]
[421191892,1777229433629,-500.0,0.00011999,2]
[421191893,1777229433640,-500.0,0.00011999,2]
[421191894,1777229433651,-500.0,0.00011999,2]
[421191895,1777229433660,-500.0,0.00011999,2]
[421191896,1777229433670,-500.0,0.00011999,2]
[421191897,1777229433679,-195.30195616,0.00011999,2]
[421191898,1777229433688,-500.0,0.00011999,2]
[421191899,1777229433699,-392.47163479,0.00011999,2]
[421191900,1777229433708,-113577.80550657,0.00012,2]
[421191901,1777229434930,-14398.71183394,0.00012,2]
[421191902,1777229434954,-4726.3500637,0.00012,2]
[421191903,1777229434966,-1557.27262659,0.00012,2]
[421191904,1777229434978,-8353.78738085,0.00012,2]
[421191905,1777229434989,-5859.642288,0.00012,2]
[421191906,1777229435000,-1351.14592439,0.00012,2]
[421191907,1777229435012,-522.00245098,0.00012,2]
[421191908,1777229435031,-388.9964205,0.00012,2]
[421191909,1777229435042,-370.97500365,0.00012,2]
[421191910,1777229435053,-934.45208279,0.00012,2]
[421191911,1777229435064,-2408.9714815,0.00012,2]
[421191912,1777229435076,-685.28174376,0.00012,2]
[421191913,1777229435087,-1123.1044889,0.00012,2]
[421191914,1777229435099,-625.05307491,0.00012,2]
[421191915,1777229435117,-14193.41447234,0.00012,2]
[421191917,1777229438166,-57120.47832789,0.00012,2]
[421191918,1777229438225,-1678.19997191,0.00012,2]
[421191919,1777229438241,-2127.56901028,0.00012,2]
[421191920,1777229438331,-3000.0,0.00012,2]
[421191921,1777229438344,-383.01119789,0.00012,2]
[421191922,1777229438385,-667.96197469,0.00012,2]
[421191923,1777229438441,-730.938443,0.00012,2]
[421191924,1777229438549,-7231.10946283,0.00012,2]
[421191925,1777229438560,-17344.45971582,0.00012,2]
[421191953,1777229440232,-1298.42344274,0.00012,2]
[421191954,1777229440285,-229.99597002,0.000119,2]
[421191955,1777229440297,-1353.41729916,0.00012,2]
[421191956,1777229440311,-18832.70322996,0.00012,2]
[421191957,1777229440340,-2540.85,0.00012,2]
[421191958,1777229440352,-507.18,0.00012,2]
[421191959,1777229440462,-24319.30123661,0.00012,2]
[421191960,1777229440557,-1546349.41588356,0.00012,2]
[421191961,1777229440776,-671.81221062,0.00012,2]
[421191962,1777229440791,-9954.62348864,0.00012,2]
[421191978,1777229443252,-991.3495232,0.00012,2]
[421191979,1777229443308,-11387.92118104,0.00012,2]
[421191980,1777229443320,-1057.89460526,0.00012,2]
[421191981,1777229443362,-5099.6654483,0.00012,2]
[421191982,1777229443417,-1143.02930338,0.00012,2]
[421191983,1777229443430,-904.53247622,0.00012,2]
[421191984,1777229443472,-1368.91980837,0.00012,2]
[421191985,1777229443484,-494.10564913,0.00012,2]
[421191986,1777229443496,-680.76275655,0.00012,2]
[421192014,1777229446944,-152.0,0.00010176,7]
[421192016,1777229446954,-686.46413676,0.00012,2]
[421192019,1777229446968,-804.94870996,0.00012,2]
[421192024,1777229447098,-152.0,0.00010176,7]
[421192025,1777229447109,-279.885,0.00012,2]
[421192026,1777229447121,-553.5,0.00012,2]
[421192027,1777229447142,-451.33320894,0.00012,2]
[421192028,1777229447154,-1123.71239335,0.00012,2]
[421192029,1777229447172,-40421.83526464,0.00012,2]
[421192030,1777229447183,-1362.91705858,0.00012,2]
[421192031,1777229447204,-1078.07,0.00012,2]
[421192032,1777229467006,183.336151,0.0002352,120]
[421192039,1777229638749,2000.59,0.00032876,120]
[421192040,1777229684656,4450.108775,0.00022592,120]
[421192046,1777230028461,-280.0,8.219e-05,2]
[421192047,1777230028491,-500.0,8.219e-05,2]
[421192048,1777230028523,-1134519.5849778,8.7e-05,2]
[421192049,1777230028553,-1200.0,9.999e-05,2]
[421192050,1777230028583,-253.0,9.999e-05,2]
[421192051,1777230028616,-16885.61894888,0.0001,2]
[421192052,1777230028648,-1680.0,0.00010999,2]
[421192053,1777230028679,-711.76,0.00011749,2]
[421192054,1777230028711,-212.89133452,0.00011992,2]
[421192055,1777230028740,-2500.0,0.00011992,2]
[421192056,1777230028769,-2500.0,0.00011992,2]
[421192057,1777230028799,-200.0,0.00011993,2]
[421192058,1777230028829,-500.0,0.00011993,2]
[421192059,1777230028859,-500.0,0.00011993,2]
[421192060,1777230028890,-500.0,0.00011993,2]
[421192061,1777230028920,-500.0,0.00011993,2]
[421192062,1777230028951,-500.0,0.00011993,2]
[421192063,1777230028981,-500.0,0.00011993,2]
[421192064,1777230029011,-978.27760484,0.00011996,2]
[421192065,1777230029041,-150.0,0.00011997,2]
[421192066,1777230029071,-39150.21574525,0.00012,2]
[421192067,1777230029103,-62935.5089468,0.00012,2]
[421192068,1777230029133,-150.0,0.00012,2]
[421192069,1777230029165,-265.29386797,0.00012,2]
[421192070,1777230029195,-151.0,0.00012,2]
[421192071,1777230029226,-4842.9178167,0.00012,2]
[421192072,1777230029261,-152.0,0.00012002,7]
[421192073,1777230029295,-152.0,0.00012002,7]
[421192074,1777230029324,-161.0,0.0001201,2]
[421192075,1777230029353,-205.00460292,0.00012097,3]
[421192076,1777230029390,-534.03838824,0.00012097,2]
[421192077,1777230029428,-500.0,0.00012097,2]
[421192078,1777230029466,-175.41688272,0.00012097,2]
[421192079,1777230029504,-500.0,0.00012097,2]
[421192080,1777230029540,-500.0,0.00012097,2]
[421192081,1777230029577,-500.0,0.00012097,2]
[421192082,1777230029612,-500.0,0.00012097,2]
[421192083,1777230029650,-500.0,0.00012097,2]
[421192084,1777230029687,-500.0,0.00012097,2]
[421192085,1777230029723,-500.0,0.00012097,2]
[421192086,1777230029758,-500.0,0.00012097,2]
[421192087,1777230029794,-500.0,0.00012097,2]
[421192088,1777230029829,-500.0,0.00012097,2]
[421192089,1777230029866,-500.0,0.00012097,2]
[421192090,1777230029902,-500.0,0.00012097,2]
[421192091,1777230029939,-500.0,0.00012097,2]
[421192092,1777230029969,-150.99,0.00012098,2]
[421192093,1777230029999,-9999.99,0.00012098,2]
[421192094,1777230030029,-18579.86,0.00012098,2]
[421192095,1777230030058,-9999.99,0.00012098,2]
[421192096,1777230030089,-2351.0,0.00012099,2]
[421192097,1777230030122,-152.0,0.00012101,7]
[421192098,1777230030155,-152.0,0.00012113,7]
[421192099,1777230030189,-152.0,0.00012113,7]
[421192100,1777230030223,-152.0,0.00012229,7]
[421192101,1777230030256,-152.0,0.00012242,7]
[421192102,1777230030289,-152.0,0.00012242,7]
[421192103,1777230030322,-152.0,0.00012369,7]
[421192104,1777230030615,-152.0,0.00012382,7]
[421192105,1777230030649,-152.0,0.00012382,7]
[421192106,1777230030686,-152.0,0.00012523,7]
[421192107,1777230030719,-152.0,0.00012536,7]
[421192108,1777230030749,-250.0,0.00013,2]
[421192109,1777230030779,-5662.04399039,0.00013,2]
[421192110,1777230030811,-795.16,0.00013054,2]
[421192111,1777230030842,-255.0,0.00013077,2]
[421192112,1777230030872,-2500.0,0.00013191,2]
[421192113,1777230030904,-193.0,0.00013191,2]
[421192114,1777230030934,-2500.0,0.00013191,2]
[421192115,1777230030965,-4842.9178167,0.00013304,2]
[421192116,1777230030996,-3292.0,0.00013309,2]
[421192117,1777230031025,-2000.0,0.00013462,2]
[421192118,1777230031054,-500.0,0.00013698,2]
[421192119,1777230031085,-500.0,0.00013698,2]
[421192120,1777230031114,-500.0,0.00013698,2]
[421192121,1777230031146,-500.0,0.00013698,2]
[421192122,1777230031175,-500.0,0.00013698,2]
[421192123,1777230031206,-500.0,0.00013698,2]
[421192124,1777230031237,-500.0,0.00013698,2]
[421192125,1777230031267,-500.0,0.00013698,2]
[421192126,1777230031298,-500.0,0.00013698,2]
[421192127,1777230031327,-500.0,0.00013698,2]
[421192128,1777230031357,-500.0,0.00013698,2]
[421192129,1777230031387,-500.0,0.00013698,2]
[421192130,1777230031416,-500.0,0.00013698,2]
[421192131,1777230031445,-500.0,0.00013698,2]
[421192132,1777230031476,-500.0,0.00013698,2]
[421192133,1777230031505,-500.0,0.00013698,2]
[421192134,1777230031535,-500.0,0.00013698,2]
[421192135,1777230031565,-500.0,0.00013698,2]
[421192136,1777230031593,-500.0,0.00013698,2]
[421192137,1777230031623,-500.0,0.00013698,2]
[421192138,1777230031651,-500.0,0.00013698,2]
[421192139,1777230031679,-500.0,0.00013698,2]
[421192140,1777230031708,-500.0,0.00013698,2]
[421192141,1777230031736,-500.0,0.00013698,2]
[421192142,1777230031764,-408.52570112,0.00013698,2]
[421192143,1777230031793,-201.58331721,0.00013698,2]
[421192144,1777230031823,-500.0,0.00013698,2]
[421192145,1777230031852,-214.05,0.00013698,2]
[421192146,1777230031881,-500.0,0.00013698,2]
[421192147,1777230031910,-500.0,0.00013698,2]
[421192148,1777230031938,-500.0,0.00013698,2]
[421192149,1777230031966,-500.0,0.00013698,2]
[421192150,1777230031994,-500.0,0.00013698,2]
[421192151,1777230032023,-500.0,0.00013698,2]
[421192152,1777230032052,-500.0,0.00013698,2]
[421192153,1777230032081,-500.0,0.00013698,2]
[421192154,1777230032110,-500.0,0.00013698,2]
[421192155,1777230032139,-501.58788046,0.00013698,2]
[421192156,1777230032168,-273.97,0.00013698,2]
[421192157,1777230032197,-1000.0,0.00013699,2]
[421192158,1777230032226,-290.94787002,0.00013699,2]
[421192159,1777230032255,-500.0,0.00013699,2]
[421192160,1777230032284,-500.0,0.00013699,2]
[421192161,1777230032610,-162.85,0.000137,2]
[421192162,1777230032640,-500.0,0.00013959,2]
[421192163,1777230032671,-273.97,0.00013972,2]
[421192164,1777230032700,-1500.0,0.00014,2]
[421192165,1777230032730,-14042.8101903,0.00014174,2]
[421192166,1777230032766,-273.97,0.00014246,2]
[421192167,1777230032797,-433.0,0.00014252,2]
[421192168,1777230032828,-273.97,0.0001452,2]
[421192169,1777230032859,-4842.9178167,0.00014608,2]
[421192170,1777230032891,-1357.0,0.0001464,2]
[421192171,1777230032922,-3133.3744867,0.00014659,2]
[421192172,1777230032952,-274.01,0.00014794,2]
[421192173,1777230032982,-689.55457494,0.000149,2]
[421192174,1777230033012,-2071.65244833,0.00015,2]
[421192175,1777230033042,-426.85137114,0.00015,2]
[421192176,1777230033072,-160.0,0.00015,2]
[421192177,1777230033102,-300.0,0.00015,2]
[421192178,1777230033132,-452.37,0.00015243,2]
[421192179,1777230033167,-1517.64,0.000153,2]
[421192180,1777230033203,-513.77222787,0.000154,2]
[421192181,1777230033234,-1234.32445834,0.000155,2]
[421192182,1777230033270,-428.0,0.00015536,2]
[421192183,1777230033305,-1592.62850532,0.00015634,2]
[421192184,1777230033337,-267.09677988,0.0001567,33]
[421192185,1777230033369,-267.09677986,0.0001577,37]
[421192186,1777230033399,-267.09677986,0.0001587,41]
[421192187,1777230033432,-4842.9178167,0.00015912,2]
[421192188,1777230033462,-508.4,0.00015955,2]
[421192189,1777230033493,-567.97,0.00015955,2]
[421192190,1777230033524,-267.09677986,0.0001597,45]
[421192191,1777230033555,-418.5637299,0.00016,2]
[421192192,1777230036414,161.0,0.0001201,2]
[421192193,1777230039331,348.78174726,0.00013699,2]
[421192194,1777230040492,500.0,0.00012097,2]
[421192195,1777230040879,200.0,0.000153,2]
[421192196,1777230046207,151.0,0.00016,2]
[421192198,1777230046700,151.0,0.00016,2]
[421192199,1777230049208,290.18176836,0.00014908,2]
[421192200,1777230051443,186956.98604614,0.000107,2]
[421192201,1777230119517,1509.858335,0.00028406,120]
[421192202,1777230131051,-300.0,0.00010699,2]
[421192203,1777230131072,-9700.0,0.000107,2]
[421192204,1777230132487,-10000.0,0.000107,2]
[421192205,1777230132973,-10000.0,0.000107,2]
[421192206,1777230133331,-10000.0,0.000107,2]
[421192207,1777230134009,-10000.0,0.000107,2]
[421192208,1777230134455,-10000.0,0.000107,2]
[421192209,1777230134957,-10000.0,0.000107,2]
[421192210,1777230135359,-10000.0,0.000107,2]
[421192211,1777230135768,-10000.0,0.000107,2]
[421192212,1777230136181,-10000.0,0.000107,2]
[421192213,1777230136832,-10000.0,0.000107,2]
[421192214,1777230137667,-10000.0,0.000107,2]
[421192215,1777230139631,-10000.0,0.000107,2]
[421192216,1777230140105,-10000.0,0.000107,2]
[421192217,1777230142503,-10000.0,0.000107,2]
[421192218,1777230142711,-10000.0,0.000107,2]
[421192219,1777230143926,-10000.0,0.000107,2]
[421192220,1777230145037,-10000.0,0.000107,2]
[421192221,1777230145861,-10000.0,0.000107,2]
[421192222,1777230148625,-10000.0,0.000107,2]
[421192223,1777230187373,-300.0,0.00010699,2]
[421192224,1777230187394,-4629.0,0.000107,2]
[421192225,1777230234052,715.196055,0.00025121,120]
[421192227,1777230320223,495.954406,0.0002633,120]
[421192261,1777230352676,247.977203,0.00025121,120]
[421192262,1777230423628,310.060193,0.00025382,120]
[421192279,1777230504943,210.727408,0.00026156,120]
[421192280,1777230549627,188.912387,0.00026156,120]
[421192288,1777230632359,-280.0,8.219e-05,2]
[421192289,1777230632370,-2060.26135989,0.00010699,2]
[421192290,1777230632383,-300.0,0.00010699,2]
[421192291,1777230632396,-44642.35126984,0.000107,2]
[421192292,1777230632541,-463.60708434,0.000107,2]
[421192293,1777230632561,-325.277498,0.000107,2]
[421192496,1777230640770,-1678.19997191,0.0001069,2]
[421192499,1777230640782,-376.25388319,0.0001069,2]
[421192501,1777230640793,-1454.76,0.0001069,2]
[421192503,1777230640806,-469.73578931,0.0001069,2]
[421192505,1777230640818,-974.33676083,0.0001069,2]
[421192509,1777230640844,-1071.0,0.0001069,2]
[421192511,1777230640855,-879.54028418,0.0001069,2]
[421192514,1777230640866,-7231.10946283,0.0001069,2]
[421192516,1777230640881,-1922.34004422,0.0001069,2]
[421192518,1777230640893,-720.01455073,0.0001069,2]
[421192520,1777230640904,-815.91901641,0.0001069,2]
[421192523,1777230640915,-1900.0,0.0001069,2]
[421192525,1777230640928,-347.25659751,0.0001069,2]
[421192527,1777230640940,-1051.74850456,0.0001069,2]
[421192529,1777230640955,-1894.42310382,0.0001069,2]
[421192532,1777230640970,-6000.0,0.0001069,2]
[421192534,1777230640982,-9662.93463532,0.0001069,2]
[421192536,1777230640993,-539.53907763,0.0001069,2]
[421192539,1777230641005,-14904.70934998,0.0001069,2]
[421192541,1777230641014,-3051.36527557,0.000107,2]
[421192543,1777230641026,-3562.06698633,0.000107,2]
[421192545,1777230641037,-363.98,0.000107,2]
[421192547,1777230641049,-667.96197469,0.000107,2]
[421192557,1777230641139,-38405.57288514,0.000107,2]
[421192560,1777230641152,-38031.97488127,0.000107,2]
[421192562,1777230641169,-152.0,0.00011075,7]
[421192564,1777230641191,-3115.7227129,0.00011397,2]
[421192566,1777230641205,-1504.4657668,0.00011397,2]
[421192568,1777230641215,-3132.4619188,0.0001143,2]
[421192569,1777230641225,-420.0,0.00011761,2]
[421192571,1777230641234,-587.0,0.00012928,2]
[421192573,1777230641244,-500.0,0.00013698,2]
[421192575,1777230641254,-536.18,0.00013699,2]
[421192577,1777230641263,-1838.5,0.00013699,2]
[421192579,1777230641273,-500.42,0.00013699,2]
[421192581,1777230641282,-500.0,0.00013699,2]
[421192583,1777230641292,-248.93602511,0.00013699,2]
[421192585,1777230641301,-21296.31925063,0.00014018,2]
[421192587,1777230641311,-500.0,0.00014118,2]
[421192589,1777230641321,-500.0,0.00014118,2]
[421192591,1777230641331,-500.0,0.00014118,2]
[421192594,1777230641341,-500.0,0.00014118,2]
[421192596,1777230641351,-500.0,0.00014118,2]
[421192598,1777230641361,-500.0,0.00014118,2]
[421192599,1777230641371,-500.0,0.00014118,2]
[421192601,1777230641381,-594.83730631,0.00014118,2]
[421192603,1777230641391,-500.0,0.00014118,2]
[421192605,1777230641401,-500.0,0.00014118,2]
[421192607,1777230641411,-500.0,0.00014118,2]
[421192609,1777230641421,-500.0,0.00014118,2]
[421192611,1777230641431,-500.0,0.00014118,2]
[421192613,1777230641442,-500.0,0.00014118,2]
[421192615,1777230641452,-500.0,0.00014118,2]
[421192617,1777230641464,-500.0,0.00014118,2]
[421192619,1777230641474,-500.0,0.00014118,2]
[421192621,1777230641484,-500.0,0.00014118,2]
[421192623,1777230641494,-500.0,0.00014118,2]
[421192626,1777230641504,-500.0,0.00014118,2]
[421192627,1777230641513,-500.0,0.00014118,2]
[421192629,1777230641523,-500.0,0.00014118,2]
[421192631,1777230641532,-500.0,0.00014118,2]
[421192633,1777230641542,-500.0,0.00014118,2]
[421192635,1777230641553,-500.0,0.00014118,2]
[421192637,1777230641562,-500.0,0.00014118,2]
[421192639,1777230641572,-500.0,0.00014118,2]
[421192641,1777230641582,-350.0,0.00014118,2]
[421192643,1777230641591,-500.0,0.00014118,2]
[421192645,1777230641600,-407.87519445,0.00014118,2]
[421192647,1777230641609,-500.0,0.00014118,2]
[421192649,1777230641619,-500.0,0.00014118,2]
[421192651,1777230641629,-500.0,0.00014118,2]
[421192653,1777230641638,-500.0,0.00014118,2]
[421192655,1777230641649,-500.0,0.00014118,2]
[421192657,1777230641658,-500.0,0.00014118,2]
[421192659,1777230641668,-500.0,0.00014118,2]
[421192661,1777230641677,-175.41688272,0.00014118,2]
[421192663,1777230641687,-823.0,0.0001421,2]
[421192665,1777230641697,-160.0,0.00015,2]
[421192667,1777230641707,-1152.0,0.0001562,2]
[421192669,1777230641716,-150.0,0.000159,2]
[421192671,1777230641725,-150.0,0.000159,2]
[421192673,1777230641735,-500.0,0.0001594,2]
[421192675,1777230641745,-500.0,0.0001594,2]
[421192677,1777230641755,-161.0,0.0001601,2]
[421192679,1777230641764,-1972.39,0.00016116,2]
[421192681,1777230641774,-200.0,0.0001634,2]
[421192683,1777230641785,-2000.0,0.0001635,2]
[421192685,1777230641794,-2000.0,0.0001635,2]
[421192687,1777230641804,-350.0,0.0001638,2]
[421192689,1777230641813,-1295.58866107,0.0001638,2]
[421192691,1777230641826,-704.41133893,0.0001638,2]
[421192693,1777230641836,-2000.0,0.0001638,2]
[421192695,1777230641847,-2000.0,0.0001638,2]
[421192697,1777230641856,-2000.0,0.0001638,2]
[421192699,1777230641866,-1042.9,0.00016438,2]
[421192701,1777230641875,-387.50719597,0.00016438,2]
[421192703,1777230641884,-163.84927418,0.00016438,2]
[421192705,1777230641894,-152.0,0.00016438,2]
[421192707,1777230641903,-152.0,0.00016438,2]
[421192709,1777230641913,-152.0,0.00016438,2]
[421192711,1777230641922,-152.0,0.00016438,2]
[421192713,1777230641932,-152.0,0.00016438,2]
[421192715,1777230641941,-240.0,0.00016438,2]
[421192717,1777230641950,-2000.0,0.00016455,2]
[421192719,1777230641960,-500.0,0.000165,2]
[421192721,1777230641970,-500.0,0.000165,2]
[421192723,1777230641980,-21296.31925058,0.00016894,2]
[421192725,1777230641990,-350.0,0.00017,2]
[421192727,1777230642000,-1000.0,0.00017048,2]
[421192729,1777230642009,-1613.0,0.0001717,2]
[421192731,1777230642019,-687.8459084,0.00017357,36]
[421192733,1777230642029,-160.0,0.00017393,2]
[421192734,1777230642039,-162.25551732,0.0001747,2]
[421192736,1777230642049,-203.85748369,0.00017596,2]
[421192738,1777230642060,-1408.85,0.00017728,2]
[421192740,1777230642070,-1042.9,0.00018524,2]